fUST/lending_fUST_20240212
["ID","MTS","AMOUNT","RATE_DAILY","PERIOD"]
[313751225,1707667832451,-1758.88384382,0.00017452,3]
[313751226,1707667832461,-537.66917544,0.00017453,2]
[313751227,1707667832470,-3818.34769459,0.00017453,2]
[313751228,1707667832481,-232.59327431,0.00017454,2]
[313751229,1707667832491,-9438.63941456,0.00017671,2]
[313751230,1707667832505,-3985.38958654,0.00017671,2]
[313751269,1707667838604,-154.90705577,0.00017451,3]
[313751271,1707667838614,-1367.823262,0.00017671,2]
[313751277,1707667838659,-5736.2647777,0.00017671,2]
[313751279,1707667838669,-1245.2446068,0.00017762,2]
[313751281,1707667838678,-499.59392119,0.000189,2]
[313751334,1707667841825,-263.90713049,0.000189,2]
[313751335,1707667841835,-160.77315222,0.00019078,2]
[313751336,1707667841844,-461.23726915,0.00019078,2]
[313751337,1707667841855,-1079.02199836,0.00019176,2]
[313751338,1707667841865,-156.87646366,0.00019177,2]
[313751339,1707667841874,-500.0,0.00019178,2]
[313751340,1707667841885,-500.0,0.00019178,2]
[313751341,1707667841894,-500.0,0.00019178,2]
[313751342,1707667841904,-500.0,0.00019178,2]
[313751343,1707667841914,-500.0,0.00019178,2]
[313751344,1707667841924,-500.0,0.00019178,2]
[313751345,1707667841935,-1104.42,0.00019178,2]
[313751346,1707667841946,-516.07,0.00019178,2]
[313751347,1707667841956,-500.0,0.00019178,2]
[313751348,1707667841965,-500.0,0.00019178,2]
[313751349,1707667841974,-519.03,0.00019178,2]
[313751350,1707667841984,-2757.97,0.00019178,2]
[313751351,1707667841995,-3815.41,0.00019178,2]
[313751352,1707667842004,-1182.98,0.00019178,2]
[313751353,1707667842014,-541.39,0.00019178,2]
[313751354,1707667842023,-66.78262693,0.00019178,2]
[313751355,1707667842036,-510.35737307,0.00019178,2]
[313751356,1707667842046,-1001.53562085,0.00019178,2]
[313751357,1707667842058,-59.26437915,0.00019178,2]
[313751358,1707667842068,-954.34,0.00019178,2]
[313751359,1707667842078,-186.39562085,0.00019178,2]
[313751382,1707667846512,-500.0,0.00019178,2]
[313751432,1707668304062,-212.72419898,0.00018893,2]
[313751433,1707668304087,-232.59327431,0.00018894,2]
[313751434,1707668304112,-154.90705577,0.00018895,3]
[313751435,1707668320251,154.90705577,0.00017258,3]
[313751436,1707668340257,154.90705577,0.00017258,3]
[313751439,1707668360254,154.90705577,0.00017258,3]
[313751450,1707668380327,154.90705577,0.00017258,3]
[313751455,1707668398293,154.90705577,0.00017258,3]
[313751456,1707668420275,154.90705577,0.00017258,3]
[313751457,1707668436263,154.90705577,0.00017258,3]
[313751458,1707668458260,154.90705577,0.00017258,3]
[313751463,1707668480261,154.90705577,0.00017258,3]
[313751464,1707668502268,154.90705577,0.00017258,3]
[313751467,1707668520283,154.90705577,0.00017258,3]
[313751470,1707668538267,154.90705577,0.00017258,3]
[313751472,1707668558282,154.90705577,0.00017258,3]
[313751475,1707668580275,154.90705577,0.00017258,3]
[313751476,1707668600270,154.90705577,0.00017258,3]
[313751477,1707668610930,2525.62102938,0.000255,30]
[313751478,1707668616444,154.90705577,0.00017258,3]
[313751483,1707668638276,154.90705577,0.00017258,3]
[313751490,1707668656279,154.90705577,0.00017258,3]
[313751493,1707668678287,154.90705577,0.00017258,3]
[313751494,1707668696280,154.90705577,0.00017258,3]
[313751504,1707668718285,154.90705577,0.00017258,3]
[313751506,1707668740296,154.90705577,0.00017258,3]
[313751507,1707668758288,154.90705577,0.00017258,3]
[313751508,1707668778351,154.90705577,0.00017258,3]
[313751510,1707668798310,154.90705577,0.00017258,3]
[313751511,1707668816316,154.90705577,0.00017258,3]
[313751513,1707668836320,154.90705577,0.00017258,3]
[313751519,1707668852322,154.90705577,0.00017258,3]
[313751521,1707668872343,154.90705577,0.00017258,3]
[313751528,1707668888328,154.90705577,0.00017258,3]
[313751529,1707668908345,154.90705577,0.00017258,3]
[313751530,1707668926327,154.90705577,0.00017258,3]
[313751540,1707668948340,154.90705577,0.00017258,3]
[313751547,1707668966329,154.90705577,0.00017258,3]
[313751553,1707668986329,154.90705577,0.00017258,3]
[313751563,1707669006338,154.90705577,0.00017258,3]
[313751566,1707669024340,154.90705577,0.00017258,3]
[313751613,1707669038824,-212.72419898,0.00018899,2]
[313751615,1707669038834,-1140.05452858,0.000189,2]
[313751616,1707669038847,-762.94281472,0.000189,2]
[313751617,1707669038856,-232.38863009,0.00019176,2]
[313751618,1707669038866,-300.49,0.00019178,2]
[313751619,1707669038875,-500.0,0.00019178,2]
[313751620,1707669038885,-500.0,0.00019178,2]
[313751622,1707669038894,-500.0,0.00019178,2]
[313751640,1707669039053,-500.0,0.00019178,2]
[313751642,1707669039063,-500.0,0.00019178,2]
[313751644,1707669039072,-500.0,0.00019178,2]
[313751646,1707669039082,-473.59372199,0.00019178,2]
[313751648,1707669039091,-1058.41,0.00019178,2]
[313751650,1707669039099,-500.0,0.00019178,2]
[313751652,1707669039111,-157.89962205,0.00019178,2]
[313751654,1707669039123,-342.10037795,0.00019178,2]
[313751656,1707669039133,-558.42,0.00019178,2]
[313751658,1707669039142,-3656.43,0.00019178,2]
[313751660,1707669039152,-500.0,0.00019178,2]
[313751662,1707669039161,-447.65840504,0.00019178,2]
[313751753,1707669041873,-339.64638281,0.00019178,2]
[313751754,1707669041886,-346.38521215,0.00019178,2]
[313751755,1707669041895,-914.58,0.00019178,2]
[313751756,1707669041905,-926.23,0.00019178,2]
[313751757,1707669041915,-1016.6,0.00019178,2]
[313751758,1707669041924,-3874.33,0.00019178,2]
[313751759,1707669041932,-610.82,0.00019178,2]
[313751760,1707669041942,-553.09,0.00019178,2]
[313751761,1707669041952,-1070.48,0.00019178,2]
[313751762,1707669041961,-315.49558648,0.00019178,2]
[313751779,1707669046870,-347.61871166,0.00019178,2]
[313751783,1707669074342,5000.0,0.00018601,2]
[313751803,1707669429344,212.72419898,0.00018896,2]
[313751805,1707669463531,1997.19860237,0.00018896,2]
[313751807,1707669496181,154.90705577,0.00018896,2]
[313751808,1707669511723,212.72419898,0.00018896,2]
[313751812,1707669578719,154.90705577,0.00018896,2]
[313751820,1707669813494,193.23657136,0.000188,3]
[313751913,1707670231855,-154.90705577,0.00018897,3]
[313751915,1707670231864,-1333.25758929,0.000189,2]
[313751917,1707670231874,-295.73444606,0.00019176,2]
[313751919,1707670231883,-180.97401251,0.00019176,2]
[313751921,1707670231892,-292.09477313,0.00019176,2]
[313751923,1707670231901,-155.56468108,0.00019176,2]
[313751925,1707670231910,-155.03254382,0.00019176,2]
[313751928,1707670231919,-232.52505957,0.00019177,2]
[313751931,1707670231928,-1859.71951506,0.00019177,2]
[313751934,1707670231937,-500.0,0.00019178,2]
[313751936,1707670231946,-500.0,0.00019178,2]
[313751938,1707670231955,-500.0,0.00019178,2]
[313751953,1707670232108,-541.70224837,0.00019178,2]
[313751955,1707670232117,-500.0,0.00019178,2]
[313751957,1707670232126,-500.0,0.00019178,2]
[313751959,1707670232135,-1014.3,0.00019178,2]
[313751961,1707670232144,-224.61367625,0.00019178,2]
[313751964,1707670232155,-518.83,0.00019178,2]
[313751966,1707670232164,-876.47,0.00019178,2]
[313751968,1707670232174,-726.53,0.00019178,2]
[313751970,1707670232182,-530.04,0.00019178,2]
[313751972,1707670232192,-3712.9,0.00019178,2]
[313751974,1707670232201,-500.0,0.00019178,2]
[313751975,1707670232210,-974.24,0.00019178,2]
[313751978,1707670232219,-8382.76,0.00019178,2]
[313751980,1707670232228,-773.54,0.00019178,2]
[313751982,1707670232238,-4195.02,0.00019178,2]
[313751983,1707670232246,-887.64,0.00019178,2]
[313751985,1707670232256,-500.0,0.00019178,2]
[313751988,1707670232265,-500.0,0.00019178,2]
[313751990,1707670232275,-500.0,0.00019178,2]
[313751992,1707670232284,-585.36,0.00019178,2]
[313751994,1707670232293,-500.0,0.00019178,2]
[313751995,1707670232303,-1025.88,0.00019178,2]
[313751997,1707670232312,-504.87,0.00019178,2]
[313752000,1707670232322,-4775.94,0.00019178,2]
[313752001,1707670232331,-1012.59,0.00019178,2]
[313752004,1707670232340,-500.0,0.00019178,2]
[313752005,1707670232350,-500.0,0.00019178,2]
[313752008,1707670232359,-752.44,0.00019178,2]
[313752010,1707670232369,-500.0,0.00019178,2]
[313752012,1707670232378,-4210.66,0.00019178,2]
[313752014,1707670232387,-2643.05,0.00019178,2]
[313752016,1707670232397,-500.6,0.00019178,2]
[313752018,1707670232407,-253.32439909,0.00019178,2]
[313752093,1707670237917,-246.67560091,0.00019178,2]
[313752094,1707670237927,-3504.08,0.00019178,2]
[313752095,1707670237937,-535.15,0.00019178,2]
[313752097,1707670237946,-313.5794042,0.00019178,2]
[313752165,1707670243892,-772.8705958,0.00019178,2]
[313752166,1707670243901,-500.0,0.00019178,2]
[313752167,1707670243910,-112.96132537,0.00019178,2]
[313752168,1707670243921,-358.13169284,0.00019178,2]
[313752174,1707670245908,-3054.77645107,0.00019178,2]
[313752175,1707670245920,-415.71746682,0.00019178,2]
[313752176,1707670258030,154.90705577,0.00017505,3]
[313752177,1707670278003,154.90705577,0.00017496,3]
[313752178,1707670298009,154.90705577,0.00017505,3]
[313752181,1707670324009,154.90705577,0.00017496,3]
[313752182,1707670340264,154.90705577,0.00017258,3]
[313752183,1707670362019,154.90705577,0.00017258,3]
[313752184,1707670382021,154.90705577,0.00017258,3]
[313752185,1707670404036,154.90705577,0.00017258,3]
[313752188,1707670424028,154.90705577,0.00017258,3]
[313752189,1707670438027,154.90705577,0.00017258,3]
[313752192,1707670458046,154.90705577,0.00017258,3]
[313752193,1707670476029,154.90705577,0.00017258,3]
[313752194,1707670494037,154.90705577,0.00017258,3]
[313752195,1707670518040,154.90705577,0.00017258,3]
[313752196,1707670532038,154.90705577,0.00017258,3]
[313752197,1707670547144,1359.686306,0.00017258,5]
[313752198,1707670550153,154.90705577,0.00017258,3]
[313752199,1707670563133,1350.85487338,0.00017258,5]
[313752200,1707670568058,154.90705577,0.00017258,3]
[313752202,1707670594058,154.90705577,0.00017258,3]
[313752203,1707670610049,154.90705577,0.00017258,3]
[313752204,1707670632054,154.90705577,0.00017258,3]
[313752205,1707670650056,154.90705577,0.00017258,3]
[313752206,1707670674095,154.90705577,0.00017258,3]
[313752207,1707670690072,154.90705577,0.00017258,3]
[313752208,1707670708073,154.90705577,0.00017258,3]
[313752209,1707670730073,154.90705577,0.00017258,3]
[313752210,1707670752081,154.90705577,0.00017258,3]
[313752211,1707670768095,154.90705577,0.00017258,3]
[313752212,1707670784077,154.90705577,0.00017258,3]
[313752213,1707670802078,154.90705577,0.00017258,3]
[313752214,1707670822099,154.90705577,0.00017258,3]
[313752216,1707670842159,154.90705577,0.00017258,3]
[313752217,1707670864082,154.90705577,0.00017258,3]
[313752218,1707670882091,154.90705577,0.00017258,3]
[313752219,1707670902099,154.90705577,0.00017258,3]
[313752220,1707670927101,154.90705577,0.00017258,3]
[313752221,1707670946132,154.90705577,0.00017258,3]
[313752223,1707670966102,154.90705577,0.00017258,3]
[313752225,1707670982103,154.90705577,0.00017258,3]
[313752226,1707671000111,154.90705577,0.00017258,3]
[313752228,1707671018108,154.90705577,0.00017258,3]
[313752230,1707671032122,154.90705577,0.00017258,3]
[313752231,1707671054107,154.90705577,0.00017258,3]
[313752232,1707671086424,154.90705577,0.00017258,3]
[313752234,1707671100110,154.90705577,0.00017258,3]
[313752235,1707671114129,154.90705577,0.00017258,3]
[313752236,1707671132160,154.90705577,0.00017258,3]
[313752237,1707671152120,154.90705577,0.00017258,3]
[313752239,1707671170150,154.90705577,0.00017258,3]
[313752240,1707671186127,154.90705577,0.00017258,3]
[313752242,1707671206136,154.90705577,0.00017258,3]
[313752243,1707671224127,154.90705577,0.00017258,3]
[313752245,1707671242146,154.90705577,0.00017258,3]
[313752246,1707671256127,154.90705577,0.00017258,3]
[313752247,1707671272193,154.90705577,0.00017258,3]
[313752248,1707671290242,154.90705577,0.00017258,3]
[313752250,1707671308142,154.90705577,0.00017258,3]
[313752258,1707671332139,154.90705577,0.00017258,3]
[313752264,1707671354137,154.90705577,0.00017258,3]
[313752271,1707671374202,154.90705577,0.00017258,3]
[313752277,1707671390168,154.90705577,0.00017258,3]
[313752278,1707671408230,154.90705577,0.00017258,3]
[313752282,1707671430142,154.90705577,0.00017258,3]
[313752313,1707671438199,-212.72419898,0.00018899,2]
[313752314,1707671438209,-1758.88384382,0.00018899,3]
[313752315,1707671438218,-988.83839286,0.000189,2]
[313752316,1707671438228,-3000.0,0.00019,2]
[313752317,1707671438237,-160.7731522,0.00019078,2]
[313752318,1707671438246,-154.90705577,0.00019174,2]
[313752319,1707671438255,-1964.18601947,0.00019176,2]
[313752320,1707671438265,-963.9290257,0.00019176,2]
[313752321,1707671438274,-195.93412093,0.00019177,2]
[313752322,1707671438283,-192.27196526,0.00019178,2]
[313752323,1707671438292,-641.66112806,0.00019178,2]
[313752324,1707671438301,-10316.20148278,0.00019178,2]
[313752325,1707671438311,-166.2694921,0.00019178,2]
[313752326,1707671438320,-500.0,0.00019178,2]
[313752327,1707671438329,-500.0,0.00019178,2]
[313752328,1707671438338,-500.0,0.00019178,2]
[313752329,1707671438347,-151.0,0.00019178,2]
[313752330,1707671438356,-850.65,0.00019178,2]
[313752331,1707671438365,-560.97,0.00019178,2]
[313752332,1707671438374,-474.73422336,0.00019178,2]
[313752333,1707671438383,-500.0,0.00019178,2]
[313752334,1707671438392,-372.64071785,0.00019178,2]
[313752335,1707671438403,-983.13,0.00019178,2]
[313752336,1707671438412,-500.0,0.00019178,2]
[313752337,1707671438421,-796.78,0.00019178,2]
[313752338,1707671438430,-935.52,0.00019178,2]
[313752339,1707671438440,-500.0,0.00019178,2]
[313752340,1707671438449,-500.0,0.00019178,2]
[313752341,1707671438458,-500.0,0.00019178,2]
[313752342,1707671438467,-500.0,0.00019178,2]
[313752343,1707671438476,-179.467611,0.00019178,2]
[313752344,1707671438485,-972.04,0.00019178,2]
[313752345,1707671438494,-500.0,0.00019178,2]
[313752346,1707671438503,-512.85,0.00019178,2]
[313752347,1707671438512,-4576.94,0.00019178,2]
[313752348,1707671438521,-969.61,0.00019178,2]
[313752349,1707671438530,-500.0,0.00019178,2]
[313752350,1707671438539,-500.0,0.00019178,2]
[313752351,1707671438547,-4035.21,0.00019178,2]
[313752352,1707671438557,-970.4,0.00019178,2]
[313752353,1707671438566,-2532.92,0.00019178,2]
[313752354,1707671438575,-3358.08,0.00019178,2]
[313752355,1707671438583,-4412.31,0.00019178,2]
[313752356,1707671438592,-1041.18,0.00019178,2]
[313752357,1707671438601,-810.81,0.00019178,2]
[313752358,1707671438610,-500.0,0.00019178,2]
[313752359,1707671438620,-3558.2,0.00019178,2]
[313752360,1707671438629,-8033.48,0.00019178,2]
[313752361,1707671438638,-500.0,0.00019178,2]
[313752362,1707671438647,-696.26,0.00019178,2]
[313752363,1707671438656,-500.0,0.00019178,2]
[313752364,1707671438666,-500.0,0.00019178,2]
[313752365,1707671438675,-507.96,0.00019178,2]
[313752366,1707671438684,-500.0,0.00019178,2]
[313752367,1707671438693,-4020.23,0.00019178,2]
[313752368,1707671438702,-839.95,0.00019178,2]
[313752369,1707671438712,-511.94173144,0.00019178,2]
[313752370,1707671438721,-500.0,0.00019178,2]
[313752371,1707671438730,-500.0,0.00019178,2]
[313752372,1707671438739,-197.088714,0.00019178,2]
[313752373,1707671438748,-741.31,0.00019178,2]
[313752374,1707671438760,-933.64,0.00019178,2]
[313752375,1707671438771,-721.09,0.00019178,2]
[313752376,1707671438780,-1222.69,0.00019178,2]
[313752377,1707671438791,-500.0,0.00019178,2]
[313752378,1707671438800,-169.675524,0.00019178,2]
[313752379,1707671438809,-1081.78440619,0.00019298,2]
[313752380,1707671438818,-500.0,0.00019351,2]
[313752381,1707671438827,-50692.61217299,0.00019352,2]
[313752382,1707671438837,-935.52,0.0001939,2]
[313752383,1707671438846,-1222.69,0.0001942,2]
[313752384,1707671438855,-500.0,0.0001943,2]
[313752385,1707671438865,-500.0,0.0001944,2]
[313752386,1707671438874,-232.52505957,0.00019441,2]
[313752387,1707671438883,-200.0,0.00019442,2]
[313752388,1707671438893,-909.68448577,0.0001945,2]
[313752389,1707671438902,-500.0,0.0001945,2]
[313752390,1707671438912,-182.18272303,0.0001945,2]
[313752391,1707671438922,-3388.05161586,0.0001945,2]
[313752392,1707671438932,-500.0,0.0001945,2]
[313752393,1707671438941,-1222.69,0.0001945,2]
[313752394,1707671438951,-156.29726757,0.00019451,2]
[313752395,1707671438961,-8143.86803297,0.00019451,2]
[313752396,1707671438970,-935.52,0.00019451,2]
[313752397,1707671438979,-935.52,0.00019451,2]
[313752398,1707671438988,-500.0,0.00019451,2]
[313752399,1707671438998,-500.0,0.00019451,2]
[313752400,1707671439007,-1222.69,0.00019451,2]
[313752401,1707671439016,-500.0,0.00019452,2]
[313752402,1707671439026,-500.0,0.00019452,2]
[313752403,1707671439035,-500.0,0.00019452,2]
[313752404,1707671439045,-850.65,0.00019452,2]
[313752405,1707671439055,-560.97,0.00019452,2]
[313752406,1707671439065,-500.0,0.00019452,2]
[313752407,1707671439074,-983.13,0.00019452,2]
[313752408,1707671439083,-500.0,0.00019452,2]
[313752409,1707671439093,-796.78,0.00019452,2]
[313752410,1707671439103,-500.0,0.00019452,2]
[313752411,1707671439112,-500.0,0.00019452,2]
[313752412,1707671439122,-500.0,0.00019452,2]
[313752413,1707671439131,-972.04,0.00019452,2]
[313752414,1707671439141,-500.0,0.00019452,2]
[313752415,1707671439150,-512.85,0.00019452,2]
[313752416,1707671439160,-4576.94,0.00019452,2]
[313752417,1707671439170,-969.61,0.00019452,2]
[313752418,1707671439179,-500.0,0.00019452,2]
[313752419,1707671439189,-500.0,0.00019452,2]
[313752420,1707671439198,-4035.21,0.00019452,2]
[313752421,1707671439208,-970.4,0.00019452,2]
[313752422,1707671439217,-2532.92,0.00019452,2]
[313752423,1707671439227,-3358.08,0.00019452,2]
[313752424,1707671439235,-4412.31,0.00019452,2]
[313752425,1707671439244,-1041.18,0.00019452,2]
[313752426,1707671439253,-810.81,0.00019452,2]
[313752427,1707671439262,-3558.2,0.00019452,2]
[313752428,1707671439272,-8033.48,0.00019452,2]
[313752429,1707671439281,-500.0,0.00019452,2]
[313752430,1707671439290,-696.26,0.00019452,2]
[313752431,1707671439299,-500.0,0.00019452,2]
[313752432,1707671439308,-500.0,0.00019452,2]
[313752433,1707671439317,-507.96,0.00019452,2]
[313752434,1707671439326,-500.0,0.00019452,2]
[313752435,1707671439335,-4020.23,0.00019452,2]
[313752436,1707671439344,-839.95,0.00019452,2]
[313752437,1707671439353,-500.0,0.00019452,2]
[313752438,1707671439362,-500.0,0.00019452,2]
[313752439,1707671439371,-741.31,0.00019452,2]
[313752440,1707671439380,-933.64,0.00019452,2]
[313752441,1707671439389,-721.09,0.00019452,2]
[313752442,1707671439398,-500.0,0.00019452,2]
[313752443,1707671439407,-160.7731522,0.00019489,2]
[313752444,1707671439416,-1115.58268575,0.000195,2]
[313752445,1707671439425,-250.0,0.00019725,2]
[313752446,1707671439434,-935.52,0.00019725,2]
[313752447,1707671439443,-500.0,0.00019725,2]
[313752448,1707671439455,-500.0,0.00019725,2]
[313752449,1707671439465,-458.13259191,0.00019725,2]
[313752450,1707671439474,-1222.69,0.00019725,2]
[313752451,1707671439483,-500.0,0.00019726,2]
[313752452,1707671439492,-500.0,0.00019726,2]
[313752453,1707671439502,-500.0,0.00019726,2]
[313752454,1707671439510,-850.65,0.00019726,2]
[313752455,1707671439519,-560.97,0.00019726,2]
[313752456,1707671439529,-500.0,0.00019726,2]
[313752457,1707671439538,-983.13,0.00019726,2]
[313752458,1707671439547,-605.36428787,0.00019726,2]
[313752459,1707671439556,-796.78,0.00019726,2]
[313752460,1707671439566,-500.0,0.00019726,2]
[313752461,1707671439575,-500.0,0.00019726,2]
[313752462,1707671439586,-500.0,0.00019726,2]
[313752463,1707671439597,-972.04,0.00019726,2]
[313752464,1707671439606,-500.0,0.00019726,2]
[313752465,1707671439615,-512.85,0.00019726,2]
[313752466,1707671439624,-4576.94,0.00019726,2]
[313752467,1707671439634,-969.61,0.00019726,2]
[313752468,1707671439643,-500.0,0.00019726,2]
[313752469,1707671439652,-500.0,0.00019726,2]
[313752470,1707671439661,-4035.21,0.00019726,2]
[313752471,1707671439672,-970.4,0.00019726,2]
[313752472,1707671439681,-2532.92,0.00019726,2]
[313752473,1707671439690,-3358.08,0.00019726,2]
[313752474,1707671439699,-4412.31,0.00019726,2]
[313752475,1707671439708,-1041.18,0.00019726,2]
[313752476,1707671439718,-810.81,0.00019726,2]
[313752477,1707671439734,-3558.2,0.00019726,2]
[313752478,1707671439743,-8033.48,0.00019726,2]
[313752479,1707671439752,-500.0,0.00019726,2]
[313752480,1707671439762,-696.26,0.00019726,2]
[313752481,1707671439771,-500.0,0.00019726,2]
[313752482,1707671439780,-500.0,0.00019726,2]
[313752483,1707671439790,-507.96,0.00019726,2]
[313752484,1707671439800,-500.0,0.00019726,2]
[313752485,1707671439810,-4020.23,0.00019726,2]
[313752486,1707671439819,-839.95,0.00019726,2]
[313752487,1707671439828,-500.0,0.00019726,2]
[313752488,1707671439838,-500.0,0.00019726,2]
[313752489,1707671439846,-741.31,0.00019726,2]
[313752490,1707671439856,-933.64,0.00019726,2]
[313752491,1707671439866,-721.09,0.00019726,2]
[313752492,1707671439876,-500.0,0.00019726,2]
[313752493,1707671439885,-151.0,0.00019794,2]
[313752494,1707671439895,-160.7731522,0.000199,2]
[313752495,1707671439905,-1222.69,0.00019997,2]
[313752496,1707671439915,-29672.3315037,0.00019998,2]
[313752497,1707671439924,-935.52,0.00019999,2]
[313752498,1707671439933,-935.52,0.00019999,2]
[313752499,1707671439942,-935.52,0.00019999,2]
[313752500,1707671439951,-935.52,0.00019999,2]
[313752501,1707671439960,-500.0,0.00019999,2]
[313752502,1707671439970,-500.0,0.00019999,2]
[313752503,1707671439978,-500.0,0.00019999,2]
[313752504,1707671439987,-1222.69,0.00019999,2]
[313752505,1707671439996,-1222.69,0.00019999,2]
[313752506,1707671440005,-1222.69,0.00019999,2]
[313752507,1707671440014,-1222.69,0.00019999,2]
[313752508,1707671440024,-155.84181444,0.0002,2]
[313752509,1707671440033,-1202.57082301,0.0002,2]
[313752510,1707671440042,-324.25284351,0.0002,2]
[313752511,1707671440051,-74751.28509801,0.0002,2]
[313752512,1707671440060,-681.3383372,0.0002,2]
[313752513,1707671440070,-6304.53229004,0.0002,2]
[313752514,1707671440079,-1000.0,0.0002,20]
[313752515,1707671440088,-155.45047097,0.0002,2]
[313752516,1707671440098,-155.09923176,0.0002,2]
[313752517,1707671440107,-792.96324049,0.0002,2]
[313752518,1707671440116,-450.2484328,0.0002,2]
[313752519,1707671440125,-191.83662348,0.0002,2]
[313752520,1707671440135,-1338.31774195,0.0002,2]
[313752521,1707671440144,-500.0,0.0002,2]
[313752522,1707671440153,-500.0,0.0002,2]
[313752523,1707671440165,-500.0,0.0002,2]
[313752524,1707671440174,-850.65,0.0002,2]
[313752525,1707671440183,-560.97,0.0002,2]
[313752526,1707671440193,-500.0,0.0002,2]
[313752527,1707671440202,-983.13,0.0002,2]
[313752528,1707671440211,-796.78,0.0002,2]
[313752529,1707671440221,-500.0,0.0002,2]
[313752531,1707671440229,-500.0,0.0002,2]
[313752533,1707671440238,-500.0,0.0002,2]
[313752535,1707671440246,-972.04,0.0002,2]
[313752536,1707671440255,-500.0,0.0002,2]
[313752538,1707671440264,-512.85,0.0002,2]
[313752539,1707671440273,-4576.94,0.0002,2]
[313752540,1707671440282,-969.61,0.0002,2]
[313752541,1707671440291,-500.0,0.0002,2]
[313752542,1707671440300,-500.0,0.0002,2]
[313752543,1707671440309,-4035.21,0.0002,2]
[313752544,1707671440318,-970.4,0.0002,2]
[313752545,1707671440327,-2532.92,0.0002,2]
[313752546,1707671440337,-3358.08,0.0002,2]
[313752547,1707671440346,-4412.31,0.0002,2]
[313752548,1707671440355,-1041.18,0.0002,2]
[313752549,1707671440364,-810.81,0.0002,2]
[313752551,1707671440374,-3558.2,0.0002,2]
[313752552,1707671440383,-8033.48,0.0002,2]
[313752553,1707671440392,-500.0,0.0002,2]
[313752554,1707671440401,-696.26,0.0002,2]
[313752555,1707671440410,-500.0,0.0002,2]
[313752556,1707671440421,-430.86425472,0.0002,2]
[313752557,1707671440430,-507.96,0.0002,2]
[313752558,1707671440440,-500.0,0.0002,2]
[313752560,1707671440450,-4020.23,0.0002,2]
[313752561,1707671440459,-839.95,0.0002,2]
[313752562,1707671440468,-500.0,0.0002,2]
[313752563,1707671440478,-500.0,0.0002,2]
[313752564,1707671440487,-741.31,0.0002,2]
[313752565,1707671440496,-933.64,0.0002,2]
[313752566,1707671440505,-721.09,0.0002,2]
[313752567,1707671440514,-590.47233326,0.0002,2]
[313752568,1707671440523,-935.52,0.00020272,2]
[313752569,1707671440532,-233.45744748,0.00020272,2]
[313752570,1707671440541,-1222.69,0.00020272,2]
[313752571,1707671440550,-500.0,0.00020273,2]
[313752572,1707671440559,-500.0,0.00020273,2]
[313752573,1707671440568,-500.0,0.00020273,2]
[313752574,1707671440577,-850.65,0.00020273,2]
[313752575,1707671440586,-560.97,0.00020273,2]
[313752576,1707671440596,-500.0,0.00020273,2]
[313752577,1707671440605,-983.13,0.00020273,2]
[313752578,1707671440614,-796.78,0.00020273,2]
[313752579,1707671440623,-500.0,0.00020273,2]
[313752580,1707671440633,-500.0,0.00020273,2]
[313752581,1707671440642,-500.0,0.00020273,2]
[313752582,1707671440651,-972.04,0.00020273,2]